bitfinex/quotes_BTCUSD_20250623
["timestamp","ask_amount","ask_price","bid_price","bid_amount"]
[1750703956403,1.55067433,103380.0,103350.0,10.0]
[1750703956404,1.39383154,103360.0,103350.0,10.0]
[1750703956633,1.39383154,103360.0,103350.0,10.33639232]
[1750703956634,0.44,103360.0,103350.0,10.33639232]
[1750703956871,0.96691577,103360.0,103350.0,10.34606799]
[1750703957083,0.96691577,103360.0,103350.0,10.33639232]
[1750703957312,0.96691577,103360.0,103350.0,10.32671656]
[1750703957537,1.49383154,103360.0,103350.0,10.13319939]
[1750703957741,1.49383154,103360.0,103350.0,10.004]
[1750703958025,1.49383154,103360.0,103350.0,10.009]
[1750703960264,0.96691577,103360.0,103350.0,10.009]
[1750703961352,1.49383154,103360.0,103350.0,10.009]
[1750703963780,1.15383154,103360.0,103350.0,10.009]
[1750703964276,1.15483154,103360.0,103350.0,10.009]
[1750703965656,1.68315154,103360.0,103350.0,10.009]
[1750703965876,1.13673577,103360.0,103350.0,10.009]
[1750703966097,1.76395093,103360.0,103350.0,9.4088097]
[1750703966319,1.66365154,103360.0,103350.0,9.4088097]
[1750703966549,1.66337154,103360.0,103350.0,9.4048097]
[1750703966775,1.66337154,103360.0,103350.0,9.4068097]
[1750703967218,0.60954,103360.0,103350.0,9.3998097]
[1750703967433,1.66337154,103360.0,103350.0,9.4018097]
[1750703967895,1.66437154,103360.0,103350.0,9.4018097]
[1750703968106,1.71579093,103360.0,103350.0,9.4018097]
[1750703968329,1.66549154,103360.0,103350.0,9.4018097]
[1750703968549,1.68864939,103360.0,103350.0,9.4018097]
[1750703968766,1.66549154,103360.0,103350.0,9.3998097]
[1750703968977,1.66557154,103360.0,103350.0,9.3998097]
[1750703969203,1.66757154,103360.0,103350.0,9.3998097]
[1750703969417,1.69073756,103360.0,103350.0,9.3998097]
[1750703969849,1.50149756,103360.0,103350.0,9.3998097]
[1750703970061,1.69049756,103360.0,103350.0,9.3998097]
[1750703970273,1.50149756,103360.0,103350.0,9.3998097]
[1750703970530,1.69049756,103360.0,103350.0,9.3998097]
[1750703971189,1.70503841,103360.0,103350.0,8.7996194]
[1750703971415,6.88640499,103360.0,103350.0,8.45576781]
[1750703971672,6.83640499,103360.0,103350.0,8.41088827]
[1750703971883,6.69740499,103360.0,103350.0,8.40988827]
[1750703972100,6.96489665,103360.0,103350.0,8.40988827]
[1750703972317,6.96289665,103360.0,103350.0,8.06686506]
[1750703972534,7.01189665,103360.0,103350.0,7.63805923]
[1750703972756,7.03151688,103360.0,103350.0,7.48749691]
[1750703972978,7.04596356,103360.0,103350.0,4.96679331]
[1750703973192,6.9974655,103360.0,103350.0,4.85389331]
[1750703973407,7.0054655,103360.0,103350.0,4.85389331]
[1750703973617,6.99379105,103360.0,103350.0,4.85489331]
[1750703973835,7.00346541,103360.0,103350.0,4.85489331]
[1750703974082,6.9943027,103360.0,103350.0,3.97959061]
[1750703974308,6.98430261,103360.0,103350.0,3.97959061]
[1750703974528,6.99397743,103360.0,103350.0,3.89792007]
[1750703974738,6.98430326,103360.0,103350.0,3.89792007]
[1750703974951,7.15845253,103360.0,103350.0,3.84948689]
[1750703975173,7.1392529,103360.0,103350.0,3.38912522]
[1750703975391,7.17176479,103360.0,103350.0,3.33839522]
[1750703975616,7.17276479,103360.0,103350.0,3.27666204]
[1750703975835,7.17197838,103360.0,103350.0,3.26699315]
[1750703976057,7.17197838,103360.0,103350.0,3.22689315]
[1750703976268,7.28346649,103360.0,103350.0,3.02918851]
[1750703976491,7.28346649,103360.0,103350.0,2.7027291]
[1750703976763,7.28346649,103360.0,103350.0,2.6857291]
[1750703976966,0.55907849,103360.0,103350.0,2.7504291]
[1750703977185,1.08599426,103360.0,103350.0,2.7504291]
[1750703977408,6.26853126,103360.0,103350.0,2.7504291]
[1750703977637,6.36883065,103360.0,103350.0,2.7504291]
[1750703977868,5.31499911,103360.0,103350.0,2.7504291]
[1750703978088,6.31883065,103360.0,103350.0,2.7504291]
[1750703978298,6.36883065,103360.0,103350.0,2.7504291]
[1750703978527,6.70883065,103360.0,103350.0,2.7504291]
[1750703978924,6.65783065,103360.0,103350.0,2.7504291]
[1750703979131,6.65783065,103360.0,103350.0,2.7564291]
[1750703979132,5.65499911,103360.0,103350.0,2.7564291]
[1750703979541,5.65399911,103360.0,103350.0,2.7504291]
[1750703979774,5.65499911,103360.0,103350.0,2.7544291]
[1750703979978,5.64899911,103360.0,103350.0,2.7534291]
[1750703980700,5.65499911,103360.0,103350.0,2.7644291]
[1750703981144,5.40367911,103360.0,103350.0,2.7634291]
[1750703981355,5.7508985,103360.0,103350.0,2.7634291]
[1750703981567,5.7518985,103360.0,103350.0,2.7644291]
[1750703981787,6.02784583,103360.0,103350.0,2.6997291]
[1750703982004,6.17163445,103360.0,103350.0,2.6997291]
[1750703982210,5.98241822,103360.0,103350.0,2.6997291]
[1750703982416,6.19034904,103360.0,103350.0,2.6997291]
[1750703982842,6.21937212,103360.0,103350.0,2.6997291]
[1750703983066,6.19902312,103360.0,103350.0,2.6987291]
[1750703983273,6.20869738,103360.0,103350.0,2.6987291]
[1750703983451,6.20117791,103360.0,103350.0,1.8859291]
[1750703983591,6.21085255,103360.0,103350.0,1.0861291]
[1750703983810,6.19250337,103360.0,103350.0,1.0931291]
[1750703984434,6.20217782,103360.0,103350.0,1.0931291]
[1750703984630,6.19250337,103360.0,103350.0,1.0931291]
[1750703984856,6.20217782,103360.0,103350.0,1.0931291]
[1750703985056,6.21185255,103360.0,103350.0,1.0931291]
[1750703985262,6.41502592,103360.0,103350.0,1.0931291]
[1750703985468,6.22152747,103360.0,103350.0,1.0931291]
[1750703985684,6.18301771,103360.0,103350.0,1.0931291]
[1750703985885,6.35716782,103360.0,103350.0,1.03101048]
[1750703986298,6.41487159,103360.0,103350.0,1.03101048]
[1750703988440,6.50719714,103360.0,103350.0,0.98145633]
[1750703988673,6.41196389,103360.0,103350.0,0.98145633]
[1750703988835,6.4300116,103360.0,103350.0,0.98145633]
[1750703989564,6.4300116,103360.0,103350.0,0.80179977]
[1750703989998,6.4300116,103360.0,103350.0,0.75334239]
[1750703990680,6.4300116,103360.0,103350.0,0.70488501]
[1750703990908,6.4300116,103360.0,103350.0,0.65642763]
[1750703991365,6.43001335,103360.0,103350.0,0.65642763]
[1750703992054,6.43001439,103360.0,103350.0,0.65642763]
[1750703992505,5.73821046,103360.0,103350.0,0.65642763]
[1750703992724,6.13537979,103360.0,103350.0,0.65642763]
[1750703992943,6.13537951,103360.0,103350.0,0.65642763]
[1750703993177,6.15472877,103360.0,103350.0,0.65642763]
[1750703993447,6.34822722,103360.0,103350.0,0.65642763]
[1750703993666,6.39082284,103360.0,103350.0,0.65642763]
[1750703994086,6.19732439,103360.0,103350.0,0.65642763]
[1750703994558,6.35798604,103360.0,103350.0,0.65642763]
[1750703994848,6.37144013,103360.0,103350.0,0.59827415]
[1750703995504,6.37044013,103360.0,103350.0,0.59127415]
[1750703995715,6.36544013,103360.0,103350.0,0.59027415]
[1750703995953,6.37144013,103360.0,103350.0,0.59127415]
[1750703996376,6.36544013,103360.0,103350.0,0.59027415]
[1750703996591,6.44178197,103360.0,103350.0,0.59027415]
[1750703996819,6.45078197,103360.0,103350.0,0.59127415]
[1750703996956,6.44978197,103360.0,103350.0,0.59127415]
[1750703998214,6.45178197,103360.0,103350.0,0.59227415]
[1750703998419,6.37544013,103360.0,103350.0,0.59227415]
[1750703998617,6.47744013,103360.0,103350.0,0.59227415]
[1750703998830,6.55378197,103360.0,103350.0,0.59227415]
[1750703999256,6.55138197,103360.0,103350.0,0.59227415]
[1750703999460,6.35788296,103360.0,103350.0,0.59227415]
[1750703999655,6.31553623,103360.0,103350.0,0.50504319]
[1750704000078,6.24626894,103360.0,103350.0,0.50504319]
[1750704000342,6.4494424,103360.0,103350.0,0.50504319]
[1750704001377,6.4495424,103360.0,103350.0,0.50504319]
[1750704001608,6.43986795,103360.0,103350.0,0.50504319]
[1750704001813,6.43986795,103360.0,103350.0,0.49998319]
[1750704001982,6.54016734,103360.0,103350.0,0.49998319]
[1750704002966,6.54021729,103360.0,103350.0,0.49998319]
[1750704003393,6.46387545,103360.0,103350.0,0.49998319]
[1750704003600,5.28935785,103320.0,103310.0,0.14069081]
[1750704003773,5.82040591,103320.0,103310.0,0.14269081]
[1750704004194,5.88356756,103320.0,103310.0,0.14269081]
[1750704004444,5.99324557,103320.0,103310.0,0.14269081]
[1750704004665,6.14826172,103320.0,103310.0,0.002]
[1750704004884,6.01190241,103320.0,103310.0,0.01]
[1750704005086,6.00322412,103320.0,103310.0,0.01]
[1750704005295,6.18044325,103320.0,103310.0,0.01]
[1750704005505,6.17844325,103320.0,103310.0,0.002]
[1750704005950,0.70781236,103310.0,103300.0,0.0002]
[1750704006152,6.3188043,103310.0,103300.0,0.0002]
[1750704006363,6.32848362,103310.0,103300.0,0.0002]
[1750704006771,5.38935785,103290.0,103280.0,0.004]
[1750704006988,5.82120817,103290.0,103280.0,0.004]
[1750704007195,5.82120817,103290.0,103280.0,0.0345]
[1750704007406,5.9013894,103290.0,103280.0,0.0651]
[1750704008054,5.82120817,103290.0,103280.0,0.0651]
[1750704008492,5.52850817,103290.0,103280.0,0.0721]
[1750704008774,5.67330817,103290.0,103280.0,0.0703]
[1750704008986,5.72330817,103290.0,103280.0,0.0703]
[1750704009193,5.77330817,103290.0,103280.0,0.0703]
[1750704009412,5.87360756,103290.0,103280.0,0.0703]
[1750704010135,5.92360756,103290.0,103280.0,0.0703]
[1750704010564,5.94296901,103290.0,103280.0,0.0703]
[1750704010781,0.42390465,103280.0,103270.0,0.0002]
[1750704010994,5.90824128,103280.0,103270.0,0.0002]
[1750704011213,5.82240776,103280.0,103270.0,0.0002]
[1750704011437,5.8982866,103280.0,103270.0,0.0002]
[1750704011652,5.89178018,103280.0,103270.0,0.0002]
[1750704011874,6.07574732,103280.0,103270.0,0.0002]
[1750704012086,5.49270828,103270.0,103260.0,0.0002]
[1750704012307,6.08620322,103270.0,103260.0,0.00065863]
[1750704012522,6.11207353,103270.0,103260.0,0.00065863]
[1750704012974,5.56841174,103250.0,103240.0,0.004]
[1750704013203,6.44583694,103250.0,103240.0,0.00413784]
[1750704013426,6.54613633,103250.0,103240.0,0.00413784]
[1750704013643,6.4594593,103250.0,103240.0,0.00413784]
[1750704013857,6.58076228,103250.0,103240.0,0.00413784]
[1750704014085,6.57107734,103250.0,103240.0,0.00413784]
[1750704014304,5.33935785,103230.0,103220.0,0.14039081]
[1750704014517,5.83245147,103230.0,103220.0,0.14085055]
[1750704015001,5.89720391,103230.0,103220.0,0.03145974]
[1750704015236,5.83007475,103230.0,103220.0,0.00045974]
[1750704015471,5.33935785,103210.0,103200.0,0.067]
[1750704015695,5.71337648,103210.0,103200.0,0.06713789]
[1750704015918,5.79355771,103210.0,103200.0,0.06713789]
[1750704016370,5.49971771,103210.0,103200.0,0.06713789]
[1750704016626,5.74355771,103210.0,103200.0,0.06713789]
[1750704016858,5.80104488,103210.0,103200.0,0.06713789]
[1750704017086,5.74355771,103210.0,103200.0,0.06713789]
[1750704017307,5.79355771,103210.0,103200.0,0.06713789]
[1750704017528,5.84365771,103210.0,103200.0,0.06713789]
[1750704017748,5.93208245,103210.0,103200.0,0.06713789]
[1750704017985,5.93308245,103210.0,103200.0,0.00413789]
[1750704018207,5.92339413,103210.0,103200.0,0.00413789]
[1750704018433,5.94570352,103210.0,103200.0,0.00413789]
[1750704018663,5.9233627,103210.0,103200.0,0.00413789]
[1750704018903,5.60972071,103210.0,103200.0,0.06843789]
[1750704019154,5.42326752,103210.0,103200.0,0.06843789]
[1750704019384,5.74080582,103210.0,103200.0,0.06843789]
[1750704019616,5.75534667,103210.0,103200.0,0.06843789]
[1750704020102,5.75334667,103210.0,103200.0,0.06843789]
[1750704020325,5.85364606,103210.0,103200.0,0.06843789]
[1750704021452,5.60980606,103210.0,103200.0,0.06843789]
[1750704021677,5.85364606,103210.0,103200.0,0.06843789]
[1750704021899,5.80364606,103210.0,103200.0,0.06843789]
[1750704022116,5.85364606,103210.0,103200.0,0.06843789]
[1750704022332,5.81540691,103210.0,103200.0,0.06843789]
[1750704022777,5.71510752,103210.0,103200.0,0.06843789]
[1750704023206,5.71410752,103210.0,103200.0,0.06843789]
[1750704023427,5.70331222,103210.0,103200.0,0.06843789]
[1750704023657,5.42126752,103210.0,103200.0,0.06843789]
[1750704023928,5.68139022,103210.0,103200.0,0.06843789]
[1750704024144,5.72305772,103210.0,103200.0,0.06843789]
[1750704024364,5.68877703,103210.0,103200.0,0.06843789]
[1750704024583,5.75331788,103210.0,103200.0,0.06843789]
[1750704025277,5.45947788,103210.0,103200.0,0.06843789]
[1750704025515,5.50947788,103210.0,103200.0,0.06843789]
[1750704025726,5.75307788,103210.0,103200.0,0.06843789]
[1750704025939,5.85337727,103210.0,103200.0,0.06843789]
[1750704026403,5.81516691,103210.0,103200.0,0.06843789]
[1750704026850,5.86516691,103210.0,103200.0,0.06843789]
[1750704027088,5.8077801,103210.0,103200.0,0.06843789]
[1750704027323,5.71483719,103210.0,103200.0,0.06843789]
[1750704027545,5.47123719,103210.0,103200.0,0.06843789]
[1750704027808,5.65748071,103210.0,103200.0,0.06843789]
[1750704028028,5.78421713,103210.0,103200.0,0.06843789]
[1750704028236,5.79094683,103210.0,103200.0,0.06843789]
[1750704028464,5.8145098,103210.0,103200.0,0.01021091]
[1750704028676,5.8145098,103210.0,103180.0,0.0156302]
[1750704028677,5.28935785,103190.0,103180.0,0.0156302]
[1750704028883,5.63681489,103190.0,103180.0,0.01576815]
[1750704029779,5.69422617,103190.0,103180.0,0.01576815]
[1750704030005,5.69522617,103190.0,103180.0,0.01576815]
[1750704030258,5.70029481,103190.0,103180.0,0.01576815]
[1750704030486,5.70703901,103190.0,103180.0,0.01576815]
[1750704031126,5.70072353,103190.0,103180.0,0.01576815]
[1750704031629,5.75813481,103190.0,103180.0,0.07816815]
[1750704031858,5.51453481,103190.0,103180.0,0.07816815]
[1750704032075,5.44999396,103190.0,103180.0,0.07816815]
[1750704032303,5.56201917,103190.0,103180.0,0.07816815]
[1750704032519,0.24367566,103190.0,103180.0,0.07816815]
[1750704032732,0.23860702,103190.0,103180.0,0.07816815]
[1750704032950,0.54984347,103190.0,103180.0,0.07816815]
[1750704033387,0.62860702,103190.0,103180.0,0.07816815]
[1750704033610,0.62760702,103190.0,103180.0,0.07816815]
[1750704034030,0.23672,103190.0,103180.0,0.07816815]
[1750704034259,0.29462755,103190.0,103180.0,0.07816815]
[1750704035114,0.29362755,103190.0,103180.0,0.07816815]
[1750704035543,0.29462755,103190.0,103180.0,0.07816815]
[1750704036077,0.63462755,103190.0,103180.0,0.07816815]
[1750704036288,0.73492694,103190.0,103180.0,0.07816815]
[1750704036499,0.85159113,103190.0,103180.0,0.07816815]
[1750704036757,5.75094898,103190.0,103180.0,0.07816815]
[1750704036990,5.70806087,103190.0,103180.0,0.07816815]
[1750704037205,5.66970667,103190.0,103180.0,0.07816815]
[1750704038379,5.66870667,103190.0,103180.0,0.07816815]
[1750704038589,0.78488967,103190.0,103180.0,0.07816815]
[1750704039316,0.812641,103190.0,103180.0,0.07816815]
[1750704039570,5.697458,103190.0,103180.0,0.07816815]
[1750704039811,5.69747591,103190.0,103180.0,0.07816815]
[1750704040050,5.69847591,103190.0,103180.0,0.07816815]
[1750704040267,5.77521233,103190.0,103180.0,0.07816815]
[1750704040998,0.47723545,103190.0,103180.0,0.07816815]
[1750704041227,0.71287545,103190.0,103180.0,0.07816815]
[1750704042290,0.78961187,103190.0,103180.0,0.07816815]
[1750704042907,0.78962629,103190.0,103180.0,0.07816815]
[1750704043542,0.78962629,103190.0,103180.0,0.01994368]
[1750704043759,0.66288987,103190.0,103180.0,0.01994368]
[1750704043968,0.78962629,103190.0,103180.0,0.01994368]
[1750704044177,0.39,103180.0,103170.0,0.0002]
[1750704044395,0.58240648,103180.0,103170.0,0.0002]
[1750704044814,0.34680648,103180.0,103170.0,0.0002]
[1750704045073,0.06492149,103180.0,103170.0,0.0002]
[1750704045294,0.11492149,103180.0,103170.0,0.0002]
[1750704045514,0.06592149,103180.0,103170.0,0.32343127]
[1750704045749,0.10811501,103190.0,103180.0,0.21321913]
[1750704045933,0.42725301,103200.0,103190.0,0.19381723]
[1750704046170,0.45063232,103200.0,103190.0,0.19381723]
[1750704046564,0.05251731,103200.0,103190.0,0.74151029]
[1750704046898,0.39251731,103200.0,103190.0,0.75392905]
[1750704046987,0.44251731,103200.0,103190.0,0.56011182]
[1750704047232,0.44251731,103200.0,103190.0,0.25351723]
[1750704047458,0.39251731,103200.0,103190.0,0.25351723]
[1750704047692,0.44251731,103200.0,103190.0,0.25351723]
[1750704047908,0.41337931,103200.0,103190.0,0.0587]
[1750704048613,0.36437931,103200.0,103190.0,0.0597]
[1750704048838,0.41437931,103200.0,103190.0,0.0597]
[1750704049057,0.36437931,103200.0,103190.0,0.0597]
[1750704049278,0.41437931,103200.0,103190.0,0.0597]
[1750704050392,0.36437931,103200.0,103190.0,0.0597]
[1750704050637,0.41447931,103200.0,103190.0,0.0597]
[1750704050868,0.39347926,103200.0,103190.0,0.91119988]
[1750704051087,0.05347926,103200.0,103190.0,0.91119997]
[1750704051299,0.05347926,103200.0,103190.0,0.92089017]
[1750704051513,0.02447931,103200.0,103190.0,0.92089017]
[1750704052166,0.02909995,103210.0,103190.0,0.89181864]
[1750704052378,0.00018894,103210.0,103200.0,0.91457827]
[1750704052587,0.05018894,103210.0,103200.0,0.91457827]
[1750704053687,0.05018894,103210.0,103200.0,0.38626645]
[1750704053914,0.05018894,103210.0,103200.0,0.91457827]
[1750704054360,0.05018894,103210.0,103200.0,0.91357827]
[1750704054614,0.00018894,103210.0,103200.0,0.91357827]
[1750704054849,0.05018894,103210.0,103200.0,0.91357827]
[1750704055065,0.05018894,103210.0,103200.0,1.09893827]
[1750704055269,0.05118894,103210.0,103200.0,1.08655947]
[1750704055479,0.05118894,103210.0,103200.0,0.38257739]
[1750704055656,0.05118894,103210.0,103200.0,0.38257748]
[1750704056016,0.05118894,103210.0,103200.0,0.39226712]
[1750704056221,0.05118894,103210.0,103200.0,0.40195657]
[1750704056645,0.05118894,103210.0,103200.0,0.39226712]
[1750704056830,0.05118894,103210.0,103200.0,0.40195666]
[1750704056974,0.05118894,103210.0,103200.0,0.41164611]
[1750704057424,0.05118894,103210.0,103200.0,0.40195657]
[1750704057767,0.05118894,103210.0,103200.0,0.93995708]
[1750704058377,0.00118894,103210.0,103200.0,0.93995708]
[1750704058581,0.05118894,103210.0,103200.0,0.93995708]
[1750704059046,0.00118894,103210.0,103200.0,0.93995708]
[1750704059271,0.05118894,103210.0,103200.0,0.93995708]
[1750704059709,0.05018894,103210.0,103200.0,0.93395708]
[1750704059937,0.05118894,103210.0,103200.0,0.93995708]
[1750704060379,0.00118894,103210.0,103200.0,0.95449793]
[1750704060860,0.00118894,103210.0,103200.0,1.01205793]
[1750704061521,0.00118894,103210.0,103200.0,1.54036975]
[1750704061740,0.0001,103230.0,103220.0,0.82747655]
[1750704062013,0.0001,103230.0,103220.0,1.11297594]
[1750704062248,0.0001,103260.0,103240.0,0.22378073]
[1750704062487,0.00055997,103260.0,103250.0,0.51894349]
[1750704062703,0.00055997,103260.0,103250.0,1.07745531]
[1750704062932,0.0042,103270.0,103260.0,0.28703757]
[1750704063162,0.00433788,103270.0,103260.0,0.38733696]
[1750704063401,0.00433788,103270.0,103260.0,0.91464878]
[1750704063894,1e-08,103270.0,103260.0,0.91464878]
[1750704064111,0.09543267,103280.0,103270.0,0.283716]
[1750704064337,0.13509932,103290.0,103280.0,0.28369445]
[1750704064561,0.19685618,103310.0,103300.0,0.28565132]
[1750704064806,0.19685618,103310.0,103300.0,0.38595071]
[1750704064807,0.19699398,103310.0,103300.0,0.38595071]
[1750704065037,0.24699398,103310.0,103300.0,0.56143064]
[1750704065244,0.58699398,103310.0,103300.0,0.58079078]
[1750704065460,0.58699398,103310.0,103300.0,0.38595071]
[1750704065673,0.58699398,103310.0,103300.0,0.5710709]
[1750704065890,0.58699398,103310.0,103300.0,0.56139083]
[1750704066134,0.58699398,103310.0,103300.0,0.55171067]
[1750704066352,0.24699398,103310.0,103300.0,0.56139083]
[1750704066567,0.19699398,103310.0,103300.0,0.57107071]
[1750704067205,0.19699398,103310.0,103300.0,1.09938253]
[1750704067426,0.19699398,103310.0,103300.0,0.34941939]
[1750704067678,0.19699398,103310.0,103300.0,0.53215074]
[1750704067884,0.19699398,103310.0,103300.0,0.35575109]
[1750704068098,0.19709398,103310.0,103300.0,0.35575118]
[1750704068315,0.19709398,103310.0,103300.0,0.37711132]
[1750704068535,0.19709398,103310.0,103300.0,0.39983144]
[1750704068958,0.0042378,103310.0,103300.0,0.39983144]
[1750704069174,0.0042378,103310.0,103300.0,0.39015128]
[1750704069389,0.0042378,103310.0,103300.0,0.39983106]
[1750704069390,0.0542378,103310.0,103300.0,0.39983106]
[1750704069900,0.0517178,103310.0,103300.0,0.39983106]
[1750704070112,0.0517178,103310.0,103300.0,0.39983115]
[1750704070334,0.0517178,103310.0,103300.0,0.40951103]
[1750704071643,0.0517178,103310.0,103300.0,0.39983115]
[1750704071878,0.0017178,103310.0,103300.0,0.37079067]
[1750704072093,0.0517178,103310.0,103300.0,0.39015071]
[1750704072513,0.0517178,103310.0,103300.0,0.38047083]
[1750704072743,0.0517178,103310.0,103300.0,0.13509939]
[1750704072970,0.0517178,103310.0,103300.0,0.002]
[1750704073911,0.05,103290.0,103280.0,0.48967874]
[1750704074140,0.05,103290.0,103280.0,0.5802959]
[1750704074605,0.05,103290.0,103280.0,0.38569396]
[1750704074808,0.05,103290.0,103280.0,0.57057396]
[1750704075060,0.05,103290.0,103280.0,0.3575618]
[1750704075282,0.05,103290.0,103280.0,0.31787939]
[1750704075916,0.05,103290.0,103280.0,0.28517939]
[1750704076128,0.05,103290.0,103270.0,0.25208335]
[1750704076359,0.05,103290.0,103280.0,0.003]
[1750704076792,0.24961507,103310.0,103280.0,0.003]
[1750704077032,0.49934646,103310.0,103280.0,0.003]
[1750704077280,4.884817,103300.0,103270.0,0.28513939]
[1750704077513,4.884817,103300.0,103270.0,0.28813939]
[1750704077753,0.18484,103300.0,103270.0,0.30664906]
[1750704077958,0.18484,103300.0,103270.0,0.30364925]
[1750704078171,0.18484,103300.0,103270.0,0.31333251]
[1750704078380,0.18484,103300.0,103270.0,0.10998274]
[1750704078603,0.18484,103300.0,103270.0,0.31333289]
[1750704078875,0.34,103290.0,103260.0,0.47077748]
[1750704079098,0.34,103290.0,103260.0,0.31509939]
[1750704079322,0.030112,103310.0,103300.0,0.28395132]
[1750704079563,0.004,103350.0,103330.0,0.20322992]
[1750704079778,0.01310468,103350.0,103330.0,0.19355373]
[1750704079983,0.01310468,103350.0,103330.0,0.30353066]
[1750704080206,0.029098,103360.0,103330.0,0.33463075]
[1750704080439,0.05207961,103360.0,103330.0,0.32509089]
[1750704080658,0.34,103350.0,103330.0,0.32509089]
[1750704080866,0.341,103350.0,103330.0,0.33476852]
[1750704081087,0.341,103350.0,103340.0,0.1935359]
[1750704081302,0.001,103350.0,103330.0,0.32509089]
[1750704081525,0.001,103350.0,103340.0,0.1935359]
[1750704081733,0.001,103350.0,103330.0,0.32509089]
[1750704081945,0.001,103350.0,103330.0,0.33476862]
[1750704082168,0.001,103350.0,103330.0,0.34444625]
[1750704082381,4.884817,103360.0,103330.0,0.32509089]
[1750704082588,0.0230367,103360.0,103330.0,0.32509089]
[1750704082794,0.32499314,103370.0,103330.0,0.32509089]
[1750704083025,4.884817,103360.0,103330.0,0.32509089]
[1750704083231,0.0230367,103360.0,103330.0,0.33476852]
[1750704083442,0.0230367,103360.0,103340.0,0.19353571]
[1750704083650,4.884817,103360.0,103340.0,0.19353571]
[1750704083866,0.0230367,103360.0,103330.0,0.33476852]
[1750704084015,0.0230367,103360.0,103340.0,0.19353452]
[1750704084236,0.5230367,103360.0,103340.0,0.19353452]
[1750704084419,0.05161314,103360.0,103340.0,0.19353452]
[1750704085482,4.9078537,103360.0,103340.0,0.19353452]
[1750704085692,0.0230367,103360.0,103340.0,0.19353452]
[1750704086094,0.73415253,103370.0,103340.0,0.19353452]
[1750704086501,4.884817,103360.0,103340.0,0.19353452]
[1750704086695,4.9078537,103360.0,103340.0,0.19353452]
[1750704086905,0.0230367,103360.0,103340.0,0.19353452]
[1750704087109,0.49191253,103370.0,103340.0,0.23431122]
[1750704087309,0.05361314,103370.0,103350.0,0.19351471]
[1750704088359,0.05161314,103370.0,103350.0,0.19351471]
[1750704088777,0.05161314,103370.0,103340.0,0.52892721]
[1750704088951,0.05161314,103370.0,103340.0,0.5289273]
[1750704089552,0.05361314,103370.0,103340.0,0.3442873]
[1750704089754,0.05361314,103370.0,103340.0,0.32493391]
[1750704089959,0.06957779,103370.0,103340.0,0.32493391]
[1750704090213,0.06957779,103370.0,103340.0,0.3442874]
[1750704090499,0.07157779,103370.0,103340.0,0.44123095]
[1750704090717,0.07157779,103370.0,103340.0,0.46245463]
[1750704090917,0.41157779,103370.0,103340.0,0.46245463]
[1750704091131,0.41157779,103370.0,103340.0,0.45277821]
[1750704091613,0.41157779,103370.0,103340.0,0.44310151]
[1750704091840,0.47884882,103370.0,103340.0,0.13139939]
[1750704092055,0.06167644,103360.0,103330.0,0.18477777]
[1750704092279,0.34,103350.0,103330.0,0.10043716]
[1750704092503,0.41859945,103350.0,103330.0,0.00013777]
[1750704092730,0.45169945,103350.0,103330.0,0.00013777]
[1750704093012,0.75752907,103340.0,103330.0,0.00013777]
[1750704093246,5.71868625,103340.0,103330.0,0.00013777]
[1750704093469,5.73782601,103340.0,103330.0,0.00013777]
[1750704093696,0.3726,103330.0,103290.0,0.34152852]
[1750704093924,0.02889492,103320.0,103290.0,0.4322847]
[1750704094153,0.07900626,103320.0,103290.0,0.45164681]
[1750704094374,0.07900626,103320.0,103290.0,0.4419658]
[1750704094588,0.07900626,103320.0,103290.0,0.209628]
[1750704094810,0.11753283,103320.0,103290.0,0.41293862]
[1750704095028,0.07900626,103320.0,103290.0,0.40325724]
[1750704095250,0.11753283,103320.0,103290.0,0.209628]
[1750704095476,0.11753283,103320.0,103290.0,0.178028]
[1750704095683,0.11753283,103320.0,103290.0,0.183028]
[1750704096105,0.11753283,103320.0,103290.0,0.39602005]
[1750704096322,0.11753283,103320.0,103290.0,0.39602014]
[1750704096668,0.07900626,103320.0,103290.0,0.39602014]
[1750704096890,0.11753283,103320.0,103290.0,0.39602024]
[1750704097422,0.28253222,103320.0,103290.0,0.0051378]
[1750704097682,0.43179492,103310.0,103290.0,0.0051378]
[1750704097953,5.53114685,103300.0,103290.0,0.0051378]
[1750704098159,5.72128073,103300.0,103290.0,0.0051378]
[1750704098384,5.75040073,103300.0,103290.0,0.0001378]
[1750704098607,5.30295785,103290.0,103280.0,0.0042]
[1750704098864,5.53074468,103290.0,103240.0,0.004]
[1750704099081,0.43978021,103260.0,103240.0,0.00445997]
[1750704099309,0.7475563,103260.0,103240.0,0.00445997]
[1750704099750,0.70905332,103260.0,103240.0,0.00445997]
[1750704100195,0.3630367,103260.0,103240.0,0.21755494]
[1750704100404,0.3630367,103260.0,103240.0,0.20786906]
[1750704100661,0.3630367,103260.0,103240.0,0.22724092]
[1750704100873,0.3630367,103260.0,103250.0,0.1937046]
[1750704101089,0.3630367,103260.0,103240.0,0.21755504]
[1750704101299,0.3630367,103260.0,103240.0,0.21186906]
[1750704101514,0.3630367,103260.0,103240.0,0.2021829]
[1750704101729,0.3630367,103260.0,103240.0,0.1981829]
[1750704102180,0.3630367,103260.0,103250.0,0.004]
[1750704102396,0.3950367,103260.0,103250.0,0.004]
[1750704102615,0.55116456,103260.0,103240.0,0.00445997]
[1750704102832,0.10029939,103250.0,103240.0,0.00845997]
[1750704103044,0.64777609,103250.0,103240.0,0.00845997]
[1750704103263,0.67967609,103250.0,103240.0,0.00845997]
[1750704104114,0.67967609,103250.0,103240.0,0.00445997]
[1750704104332,0.03850298,103270.0,103260.0,0.0851681]
[1750704104560,0.4931,103300.0,103270.0,0.19366708]
[1750704104995,0.34,103290.0,103270.0,0.19366708]
[1750704105420,0.61544,103300.0,103270.0,0.19366708]
[1750704105640,0.61544,103300.0,103280.0,0.19364713]
[1750704105871,0.34,103290.0,103270.0,0.19366708]
[1750704106470,0.34,103290.0,103280.0,0.19364833]
[1750704106706,0.34,103290.0,103270.0,0.19366708]
[1750704107184,0.34,103290.0,103270.0,0.27125789]
[1750704107412,0.34,103290.0,103270.0,0.19366708]
[1750704108524,0.39724,103290.0,103280.0,0.19364833]
[1750704108734,0.39724,103290.0,103270.0,0.19466708]
[1750704108955,0.49753939,103290.0,103270.0,0.001]
[1750704109169,0.53063939,103290.0,103270.0,0.001]
[1750704110007,0.53063939,103290.0,103270.0,0.19466466]
[1750704110658,0.34,103290.0,103280.0,0.19364833]
[1750704110875,0.5816,103290.0,103270.0,0.19366466]
[1750704111062,0.39724,103290.0,103280.0,0.001]
[1750704111752,0.39724,103290.0,103260.0,0.19368584]
[1750704112006,0.4886,103290.0,103260.0,0.29398523]
[1750704112227,0.56243939,103290.0,103270.0,0.001]
[1750704112643,0.56243939,103290.0,103260.0,0.19368584]
[1750704114147,0.56243939,103290.0,103250.0,0.10671081]
[1750704114359,0.52933939,103290.0,103250.0,0.40085234]
[1750704114575,0.0332,103280.0,103260.0,0.001]